fUSD/lending_fUSD_20260202
["ID","MTS","AMOUNT","RATE_DAILY","PERIOD"]
[404281589,1770028244891,-501.89927416,0.00015473,2]
[404281590,1770028244901,-500.0,0.00015473,2]
[404281591,1770028244911,-500.0,0.00015473,2]
[404281592,1770028244920,-500.0,0.00015473,2]
[404281593,1770028244931,-500.0,0.00015473,2]
[404281594,1770028244941,-500.0,0.00015473,2]
[404281595,1770028244951,-500.0,0.00015473,2]
[404281596,1770028244962,-500.0,0.00015473,2]
[404281597,1770028244976,-291.61164288,0.00015473,2]
[404281598,1770028244985,-501.08336444,0.00015473,2]
[404281599,1770028244997,-500.0,0.00015473,2]
[404281600,1770028245007,-500.0,0.00015473,2]
[404281601,1770028245016,-500.62937167,0.00015473,2]
[404281602,1770028245027,-500.0,0.00015473,2]
[404281603,1770028245037,-500.0,0.00015473,2]
[404281604,1770028245047,-500.0,0.00015473,2]
[404281605,1770028245057,-500.0,0.00015473,2]
[404281606,1770028245067,-500.0,0.00015473,2]
[404281607,1770028245077,-500.0,0.00015473,2]
[404281608,1770028245087,-500.0,0.00015473,2]
[404281609,1770028245096,-22129.3589731,0.00015489,2]
[404281610,1770028245105,-6702.9819712,0.00015532,2]
[404281611,1770028245114,-500.0,0.00015542,2]
[404281612,1770028245123,-17970.25516486,0.00015544,2]
[404281613,1770028245133,-16771.74436087,0.00015549,2]
[404281614,1770028245143,-12789.96,0.00015614,2]
[404281615,1770028245154,-277.64620196,0.00015616,2]
[404281616,1770028245165,-392.5604124,0.00015616,2]
[404281617,1770028245176,-173.7887698,0.0001563,2]
[404281618,1770028245188,-748.59415106,0.00015633,2]
[404281619,1770028245199,-500.0,0.00015671,2]
[404281620,1770028245209,-250.0,0.00015693,2]
[404281621,1770028245218,-181.68,0.0001571,2]
[404281622,1770028245230,-3682.46,0.00015753,2]
[404281623,1770028245240,-3992.56342833,0.0001596,2]
[404281624,1770028245250,-956.83032625,0.00016,2]
[404281625,1770028245263,-270.91542523,0.00016,2]
[404281626,1770028245273,-421.15115649,0.00016,2]
[404281627,1770028245282,-8886.1890163,0.00016,4]
[404281628,1770028245292,-159.99318318,0.00016003,2]
[404281629,1770028245302,-1000.0,0.00016021,2]
[404281630,1770028245312,-1000.0,0.00016021,2]
[404281631,1770028245322,-1004.30163313,0.00016021,2]
[404281632,1770028245331,-1000.0,0.00016021,2]
[404281633,1770028245340,-1018.80564021,0.00016021,2]
[404281634,1770028245350,-503.91068608,0.00016021,2]
[404281635,1770028245358,-1000.0,0.00016021,2]
[404281636,1770028245368,-399.10712823,0.00016021,2]
[404281637,1770028245378,-1000.0,0.00016021,2]
[404281638,1770028245388,-1000.0,0.00016021,2]
[404281639,1770028245398,-1000.0,0.00016021,2]
[404281640,1770028245408,-1000.0,0.00016021,2]
[404281641,1770028245418,-1000.0,0.00016021,2]
[404281642,1770028245428,-1000.0,0.00016021,2]
[404281643,1770028245437,-1000.0,0.00016021,2]
[404281644,1770028245446,-1000.0,0.00016021,2]
[404281645,1770028245455,-1000.0,0.00016021,2]
[404281646,1770028245465,-1000.0,0.00016021,2]
[404281647,1770028245474,-1005.45817911,0.00016021,2]
[404281648,1770028245484,-1005.38162593,0.00016021,2]
[404281650,1770028245493,-1000.0,0.00016021,2]
[404281652,1770028245503,-1000.0,0.00016021,2]
[404281654,1770028245512,-503.27979337,0.00016021,2]
[404281655,1770028245521,-1000.0,0.00016021,2]
[404281656,1770028245530,-740.83933027,0.00016021,2]
[404281657,1770028245539,-761.27528148,0.00016021,2]
[404281658,1770028245548,-1000.0,0.00016021,2]
[404281659,1770028245558,-1003.56149344,0.00016021,2]
[404281660,1770028245568,-1000.0,0.00016021,2]
[404281661,1770028245577,-1000.0,0.00016021,2]
[404281662,1770028245586,-1000.0,0.00016021,2]
[404281663,1770028245597,-1000.0,0.00016021,2]
[404281664,1770028245607,-1000.0,0.00016021,2]
[404281665,1770028245618,-1000.0,0.00016021,2]
[404281666,1770028245629,-1000.0,0.00016021,2]
[404281667,1770028245638,-282.06,0.00016025,2]
[404281668,1770028245648,-736.0,0.00016085,2]
[404281669,1770028245658,-500.0,0.0001609,2]
[404281670,1770028245669,-4937.7274116,0.0001609,2]
[404281671,1770028245678,-282.06,0.00016099,2]
[404281672,1770028245688,-3412.42,0.00016116,2]
[404281673,1770028245698,-17970.25516486,0.00016131,2]
[404281674,1770028245709,-16771.74436087,0.00016137,2]
[404281675,1770028245718,-305.66548204,0.00016177,2]
[404281676,1770028245728,-160.29,0.000162,2]
[404281677,1770028245737,-18949.07385472,0.000162,5]
[404281678,1770028245746,-322.6107,0.0001631,2]
[404281679,1770028245755,-174.61919141,0.0001631,2]
[404281680,1770028245766,-578.20924308,0.0001631,2]
[404281681,1770028245777,-232.68774879,0.0001631,2]
[404281682,1770028245788,-277.35679052,0.0001631,2]
[404281683,1770028245800,-500.0,0.0001631,2]
[404281684,1770028245812,-500.0,0.0001631,2]
[404281685,1770028245823,-209.40437684,0.0001631,2]
[404281686,1770028245833,-859.80605061,0.0001631,2]
[404281687,1770028245843,-151.0,0.0001631,2]
[404281688,1770028245852,-721.12765535,0.0001631,2]
[404281689,1770028245863,-1428.38747117,0.0001631,2]
[404281690,1770028245872,-250.0,0.0001631,2]
[404281691,1770028245881,-209.40437684,0.0001631,2]
[404281692,1770028245893,-250.0,0.0001631,2]
[404281693,1770028245903,-250.0,0.0001631,2]
[404281694,1770028245913,-250.0,0.0001631,2]
[404281695,1770028245924,-250.0,0.0001631,2]
[404281696,1770028245933,-250.0,0.0001631,2]
[404281697,1770028245944,-250.0,0.0001631,2]
[404281698,1770028245954,-250.0,0.0001631,2]
[404281699,1770028245963,-250.0,0.0001631,2]
[404281700,1770028245973,-250.0,0.0001631,2]
[404281701,1770028245981,-250.0,0.0001631,2]
[404281702,1770028245991,-209.40437684,0.0001631,2]
[404281703,1770028246000,-1000.0,0.00016328,2]
[404281704,1770028246009,-217.15233878,0.00016365,2]
[404281705,1770028246018,-748.59415106,0.00016389,2]
[404281706,1770028246028,-839.0,0.000164,2]
[404281707,1770028246038,-839.0,0.000164,2]
[404281708,1770028246048,-152.49,0.00016414,2]
[404281709,1770028246058,-225.18697532,0.0001642,2]
[404281710,1770028246067,-181.68,0.00016424,2]
[404281711,1770028246076,-1872.11781497,0.00016438,2]
[404281712,1770028246085,-1330.2,0.00016438,2]
[404281713,1770028246094,-500.0,0.00016438,2]
[404281714,1770028246104,-583.52076571,0.00016438,2]
[404281716,1770028246113,-1882.57323472,0.00016438,2]
[404281718,1770028246122,-1882.57323472,0.00016438,2]
[404281720,1770028246131,-1882.57323472,0.00016438,2]
[404281722,1770028246140,-1882.57323472,0.00016438,2]
[404281724,1770028246149,-1882.57323472,0.00016438,2]
[404281726,1770028246158,-1882.57323472,0.00016438,2]
[404281728,1770028246167,-1882.57323472,0.00016438,2]
[404281730,1770028246176,-1882.57323472,0.00016438,2]
[404281732,1770028246189,-1882.57323472,0.00016438,2]
[404281734,1770028246198,-1882.57323472,0.00016438,2]
[404281736,1770028246207,-1882.57323472,0.00016438,2]
[404281738,1770028246216,-1882.57323472,0.00016438,2]
[404281740,1770028246227,-1882.57323472,0.00016438,2]
[404281742,1770028246237,-1882.57323472,0.00016438,2]
[404281744,1770028246246,-1882.57323472,0.00016438,2]
[404281746,1770028246256,-1882.57323472,0.00016438,2]
[404281748,1770028246266,-1882.57323472,0.00016438,2]
[404281750,1770028246276,-1882.57323472,0.00016438,2]
[404281752,1770028246285,-1882.57323472,0.00016438,2]
[404281754,1770028246294,-1882.57323472,0.00016438,2]
[404281757,1770028246305,-1882.57323472,0.00016438,2]
[404281759,1770028246314,-1882.57323472,0.00016438,2]
[404281761,1770028246324,-1882.57323472,0.00016438,2]
[404281763,1770028246333,-1882.57323472,0.00016438,2]
[404281765,1770028246342,-1882.57323472,0.00016438,2]
[404281767,1770028246351,-1882.57323472,0.00016438,2]
[404281769,1770028246360,-1882.57323472,0.00016438,2]
[404281771,1770028246369,-1882.57323472,0.00016438,2]
[404281773,1770028246378,-1882.57323472,0.00016438,2]
[404281775,1770028246387,-1882.57323472,0.00016438,2]
[404281777,1770028246397,-1882.57323472,0.00016438,2]
[404281779,1770028246407,-1882.57323472,0.00016438,2]
[404281781,1770028246416,-1882.57323472,0.00016438,2]
[404281783,1770028246427,-1882.57323472,0.00016438,2]
[404281786,1770028246436,-1882.57323472,0.00016438,2]
[404281787,1770028246446,-1882.57323472,0.00016438,2]
[404281790,1770028246455,-1882.57323472,0.00016438,2]
[404281791,1770028246464,-1882.57323472,0.00016438,2]
[404281793,1770028246474,-1882.57323472,0.00016438,2]
[404281795,1770028246483,-1882.57323472,0.00016438,2]
[404281797,1770028246493,-1882.57323472,0.00016438,2]
[404281800,1770028246502,-1882.57323472,0.00016438,2]
[404281801,1770028246512,-1882.57323472,0.00016438,2]
[404281804,1770028246522,-1882.57323472,0.00016438,2]
[404281806,1770028246533,-1882.57323472,0.00016438,2]
[404281808,1770028246542,-1882.57323472,0.00016438,2]
[404281810,1770028246552,-1882.57323472,0.00016438,2]
[404281812,1770028246561,-1882.57323472,0.00016438,2]
[404281814,1770028246572,-1882.57323472,0.00016438,2]
[404281816,1770028246581,-1882.57323472,0.00016438,2]
[404281818,1770028246591,-1882.57323472,0.00016438,2]
[404281820,1770028246601,-1882.57323472,0.00016438,2]
[404281822,1770028246610,-1882.57323472,0.00016438,2]
[404281823,1770028246619,-1882.57323472,0.00016438,2]
[404281825,1770028246630,-1882.57323472,0.00016438,2]
[404281827,1770028246639,-1882.57323472,0.00016438,2]
[404281829,1770028246648,-1882.57323472,0.00016438,2]
[404281831,1770028246657,-1882.57323472,0.00016438,2]
[404281833,1770028246666,-1882.57323472,0.00016438,2]
[404281835,1770028246675,-1882.57323472,0.00016438,2]
[404281837,1770028246685,-1882.57323472,0.00016438,2]
[404281839,1770028246694,-1882.57323472,0.00016438,2]
[404281840,1770028246703,-1882.57323472,0.00016438,2]
[404281841,1770028246712,-1882.57323472,0.00016438,2]
[404281842,1770028246721,-1882.57323472,0.00016438,2]
[404281843,1770028246730,-1882.57323472,0.00016438,2]
[404281844,1770028246739,-1882.57323472,0.00016438,2]
[404281845,1770028246748,-1882.57323472,0.00016438,2]
[404281846,1770028246758,-1882.57323472,0.00016438,2]
[404281847,1770028246767,-1882.57323472,0.00016438,2]
[404281848,1770028246776,-1882.57323472,0.00016438,2]
[404281849,1770028246785,-3682.46,0.00016438,2]
[404281850,1770028246794,-250.55733734,0.00016438,2]
[404281851,1770028246805,-800.78453244,0.00016438,2]
[404281852,1770028246815,-233.51889341,0.00016475,2]
[404281853,1770028246826,-242.15909246,0.0001653,2]
[404281854,1770028246835,-1500.0,0.00016568,2]
[404281855,1770028246844,-1500.0,0.00016568,2]
[404281856,1770028246854,-1500.0,0.00016568,2]
[404281857,1770028246864,-1500.0,0.00016568,2]
[404281858,1770028246873,-545.1454494,0.00016568,2]
[404281859,1770028246883,-1500.0,0.00016568,2]
[404281860,1770028246893,-1500.0,0.00016568,2]
[404281861,1770028247063,-345.31167706,0.00016568,2]
[404281862,1770028247073,-619.84098311,0.00016568,2]
[404281863,1770028247082,-1500.0,0.00016568,2]
[404281864,1770028247091,-1315.28060531,0.00016568,2]
[404281865,1770028247099,-165.40489721,0.00016568,2]
[404281866,1770028247108,-1500.0,0.00016568,2]
[404281867,1770028247117,-1500.0,0.00016568,2]
[404281868,1770028247126,-505.54193795,0.00016568,2]
[404281869,1770028247135,-505.24936027,0.00016568,2]
[404281870,1770028247144,-624.86514765,0.00016568,2]
[404281871,1770028247155,-1500.0,0.00016568,2]
[404281872,1770028247165,-1500.0,0.00016568,2]
[404281873,1770028247174,-504.6853335,0.00016568,2]
[404281874,1770028247184,-1500.0,0.00016568,2]
[404281875,1770028247194,-1500.0,0.00016568,2]
[404281876,1770028247203,-1500.0,0.00016568,2]
[404281877,1770028247212,-1500.0,0.00016568,2]
[404281878,1770028247221,-276.88278142,0.00016568,2]
[404281879,1770028247230,-251.11897888,0.00016585,2]
[404281880,1770028247240,-500.0,0.00016638,2]
[404281881,1770028247249,-260.4103811,0.0001664,2]
[404281882,1770028247259,-3292.0,0.00016673,2]
[404281883,1770028247268,-270.0455652,0.00016695,2]
[404281884,1770028247277,-17970.25516486,0.00016718,2]
[404281885,1770028247286,-839.0,0.0001672,2]
[404281886,1770028247295,-16771.74436087,0.00016724,2]
[404281887,1770028247304,-280.03725112,0.0001675,2]
[404281888,1770028247313,-200.0,0.00016792,2]
[404281889,1770028247323,-290.39862941,0.00016805,2]
[404281890,1770028247332,-181.08010149,0.00016858,2]
[404281891,1770028247341,-168.90333538,0.00016858,2]
[404281892,1770028247350,-891.61887448,0.00016858,2]
[404281893,1770028247359,-151.49674582,0.00016858,2]
[404281894,1770028247368,-1481.23780761,0.00016858,2]
[404281895,1770028247376,-217.15233878,0.00016858,2]
[404281896,1770028247385,-217.15233878,0.00016858,2]
[404281897,1770028247394,-301.1433787,0.0001686,2]
[404281898,1770028247403,-500.0,0.00016877,2]
[404281899,1770028247412,-500.0,0.00016922,2]
[404281900,1770028247421,-6702.9819712,0.00016943,2]
[404281901,1770028247430,-1000.0,0.00016986,2]
[404281902,1770028247439,-151.0,0.00016997,2]
[404281903,1770028247448,-2205.73614126,0.00017,3]
[404281904,1770028247457,-157726.06092768,0.00017,2]
[404281905,1770028247466,-300.0,0.00017,2]
[404281906,1770028247475,-839.0,0.0001704,2]
[404281907,1770028247485,-163.0,0.0001704,2]
[404281908,1770028247494,-839.0,0.00017045,2]
[404281909,1770028247503,-2000.0,0.00017116,2]
[404281910,1770028247513,-974.64879752,0.00017116,2]
[404281911,1770028247522,-643.18674336,0.00017116,2]
[404281912,1770028247531,-1488.36339388,0.00017116,2]
[404281913,1770028247540,-1256.98671009,0.00017116,2]
[404281914,1770028247549,-508.230722,0.00017116,2]
[404281915,1770028247559,-2136.8475123,0.00017116,2]
[404281916,1770028247568,-1628.18837233,0.00017116,2]
[404281917,1770028247578,-2000.0,0.00017116,2]
[404281918,1770028247587,-689.68040771,0.00017116,2]
[404281919,1770028247596,-1612.39809416,0.00017116,2]
[404281920,1770028247605,-2000.0,0.00017116,2]
[404281921,1770028247615,-2000.0,0.00017116,2]
[404281922,1770028247624,-506.20015718,0.00017116,2]
[404281923,1770028247633,-2000.0,0.00017116,2]
[404281924,1770028247642,-181.68,0.00017138,2]
[404281925,1770028247651,-748.59415106,0.00017144,2]
[404281926,1770028247660,-500.0,0.00017186,2]
[404281927,1770028247668,-1330.2,0.00017202,2]
[404281928,1770028247677,-1000.0,0.0001726,2]
[404281929,1770028247687,-17970.25516486,0.00017305,2]
[404281930,1770028247696,-16771.74436087,0.00017312,2]
[404281931,1770028247705,-159.99318318,0.00017336,2]
[404281932,1770028247715,-163.0,0.0001736,2]
[404281933,1770028247725,-839.0,0.0001736,2]
[404281934,1770028247735,-839.0,0.0001736,2]
[404281935,1770028247746,-163.0,0.0001736,2]
[404281936,1770028247755,-2835.0,0.0001736,2]
[404281937,1770028247764,-187.78006525,0.00017406,2]
[404281938,1770028247775,-924.60877284,0.00017406,2]
[404281939,1770028247785,-1536.04360649,0.00017406,2]
[404281940,1770028247796,-225.18697532,0.00017406,2]
[404281941,1770028247806,-225.18697532,0.00017406,2]
[404281942,1770028247816,-13442.50995431,0.000175,2]
[404281943,1770028247830,-5160.0,0.00017521,2]
[404281944,1770028247839,-1000.0,0.00017534,2]
[404281945,1770028247849,-1103.0,0.00017586,2]
[404281946,1770028247858,-5160.0,0.00017613,2]
[404281947,1770028247866,-9135.25,0.0001763,2]
[404281948,1770028247876,-447.23523297,0.00017664,2]
[404281949,1770028247884,-1002.53462592,0.00017664,2]
[404281950,1770028247894,-502.03881526,0.00017664,2]
[404281951,1770028247902,-716.63993214,0.00017664,2]
[404281952,1770028247911,-1504.86417643,0.00017664,2]
[404281953,1770028247921,-772.93,0.00017677,2]
[404281954,1770028247931,-334.5472959,0.00017679,2]
[404281955,1770028247941,-163.0,0.0001768,2]
[404281956,1770028247950,-5160.0,0.00017712,2]
[404281957,1770028247960,-5160.0,0.00017714,2]
[404281958,1770028247971,-5160.0,0.00017719,2]
[404281959,1770028247981,-2176.891,0.00017724,2]
[404281960,1770028247990,-175.102,0.00017724,2]
[404281961,1770028248002,-5160.0,0.00017725,2]
[404281962,1770028248013,-507.10580581,0.00017734,2]
[404281963,1770028248023,-318.93387854,0.00017738,2]
[404281964,1770028248033,-200.009499,0.00017781,2]
[404281965,1770028248043,-10091.57601831,0.00017789,2]
[404281966,1770028248052,-403.0,0.00017797,2]
[404281967,1770028248060,-502.14782899,0.000178,3]
[404281968,1770028248072,-500.0,0.00017808,2]
[404281969,1770028248081,-1000.0,0.00017808,2]
[404281970,1770028248090,-5160.0,0.00017816,2]
[404281971,1770028248099,-2000.0,0.0001782,2]
[404281972,1770028248108,-25000.0,0.00017823,3]
[404281973,1770028248117,-5160.0,0.00017825,2]
[404281974,1770028248126,-152.49,0.00017829,2]
[404281975,1770028248135,-5160.0,0.00017829,2]
[404281976,1770028248144,-25000.0,0.00017832,3]
[404281977,1770028248153,-403.0,0.00017839,2]
[404281978,1770028248162,-25000.0,0.00017841,3]
[404281979,1770028248171,-25000.0,0.00017849,3]
[404281980,1770028248182,-181.68,0.00017853,2]
[404281981,1770028248195,-25000.0,0.00017858,3]
[404281982,1770028248204,-152.49,0.00017861,2]
[404281983,1770028248215,-500.0,0.00017863,2]
[404281984,1770028248226,-25000.0,0.00017867,3]
[404281985,1770028248236,-703.13852903,0.00017868,2]
[404281986,1770028248244,-5160.0,0.00017868,2]
[404281987,1770028248254,-839.0,0.00017875,2]
[404281988,1770028248263,-163.0,0.00017875,2]
[404281989,1770028248272,-25000.0,0.00017876,3]
[404281990,1770028248281,-25000.0,0.00017885,3]
[404281991,1770028248290,-17970.25516486,0.00017892,2]
[404281992,1770028248299,-25000.0,0.00017893,3]
[404281993,1770028248308,-3249.69207963,0.00017893,2]
[404281994,1770028248317,-502.22007579,0.00017893,4]
[404281995,1770028248329,-3567.149953,0.00017893,2]
[404281996,1770028248338,-222.39065837,0.000179,2]
[404281997,1770028248347,-10000.0,0.000179,2]
[404281998,1770028248356,-16771.74436087,0.000179,2]
[404281999,1770028248365,-370.87018135,0.000179,2]
[404282000,1770028248374,-17205.90121961,0.000179,3]
[404282001,1770028248383,-748.59415106,0.000179,2]
[404282002,1770028248394,-199.24021691,0.000179,2]
[404282003,1770028248403,-720.83581714,0.000179,2]
[404282004,1770028248413,-7719.25534853,0.000179,2]
[404282005,1770028248422,-25000.0,0.00017902,3]
[404282006,1770028248431,-25000.0,0.00017911,3]
[404282007,1770028248441,-500.0,0.00017918,2]
[404282008,1770028248450,-25000.0,0.0001792,3]
[404282009,1770028248460,-2000.0,0.0001792,2]
[404282010,1770028248469,-25000.0,0.00017929,3]
[404282011,1770028248479,-25000.0,0.00017937,3]
[404282012,1770028248488,-5160.0,0.0001794,2]
[404282013,1770028248498,-25000.0,0.00017946,3]
[404282014,1770028248508,-5160.0,0.00017949,2]
[404282015,1770028248517,-194.72792766,0.00017954,2]
[404282016,1770028248526,-958.81929743,0.00017954,2]
[404282017,1770028248538,-1592.87721993,0.00017954,2]
[404282018,1770028248548,-233.51889341,0.00017954,2]
[404282019,1770028248558,-233.51889341,0.00017954,2]
[404282020,1770028248568,-25000.0,0.00017955,3]
[404282021,1770028248578,-1000.0,0.0001796,2]
[404282022,1770028248589,-25000.0,0.00017964,3]
[404282023,1770028248599,-278.0,0.00017964,2]
[404282024,1770028248609,-1330.2,0.00017966,2]
[404282025,1770028248620,-506.1208044,0.00017972,2]
[404282026,1770028248630,-25000.0,0.00017973,3]
[404282027,1770028248641,-25000.0,0.00017981,3]
[404282028,1770028248651,-500.0,0.00017982,2]
[404282029,1770028248660,-204.03115067,0.0001799,2]
[404282030,1770028248669,-25000.0,0.0001799,3]
[404282031,1770028248678,-3356.7224247,0.00017991,2]
[404282032,1770028248687,-343531.86075973,0.00017991,2]
[404282033,1770028249566,-4069.35546928,0.00017991,2]
[404282034,1770028249628,-500.0,0.00017991,2]
[404282035,1770028249641,-341.04,0.00017991,2]
[404282036,1770028249654,-500.0,0.00017991,2]
[404282037,1770028249756,-1611.36214816,0.0001279,2]
[404282038,1770028249767,-91631.89856259,0.00017991,2]
[404282039,1770028249778,-5160.0,0.00017992,2]
[404282040,1770028249789,-151.0,0.00017997,2]
[404282041,1770028249800,-248.17115062,0.00017999,2]
[404282042,1770028249811,-299.809,0.00017999,2]
[404282043,1770028249822,-25000.0,0.00017999,3]
[404282044,1770028249834,-300.0,0.00017999,2]
[404282045,1770028249845,-300.0,0.00017999,2]
[404282046,1770028249857,-670.83228666,0.00017999,2]
[404282047,1770028249867,-300.0,0.00017999,2]
[404282048,1770028249878,-300.0,0.00017999,2]
[404282049,1770028249890,-300.0,0.00017999,2]
[404282050,1770028249902,-666.0,0.00017999,2]
[404282051,1770028249914,-253873.66764412,0.00018,2]
[404282052,1770028249941,-602.0,0.00018,2]
[404282053,1770028249955,-3485.09627712,0.00018,2]
[404282054,1770028249973,-2783.37,0.00018,2]
[404282055,1770028249987,-265.60627094,0.00018,2]
[404282056,1770028250001,-581.45672485,0.00018,2]
[404282057,1770028250034,-1876.8110829,0.00012596,2]
[404282058,1770028250046,-623.1889171,0.00012596,2]
[404282059,1770028250055,-1115.9820576,0.00018,2]
[404282068,1770028430830,-2581.26,0.0001192,2]
[404282069,1770028430854,-300.0,0.00012509,2]
[404282070,1770028430881,-77118.74,0.0001251,2]
[404282072,1770028539446,-1200.0,0.00012431,2]
[404282073,1770028539478,-300.0,0.00012431,2]
[404282074,1770028561446,300.0,0.00012431,2]
[404282075,1770028656227,272.27841502,0.00012332,2]
[404282076,1770028682092,300.0,0.00012431,2]
[404282077,1770028706906,-250.0,0.00012432,2]
[404282078,1770028706926,-17970.25516489,0.00012432,2]
[404282079,1770028706946,-2759.79785689,0.00012432,2]
[404282080,1770028706966,-1815.10633301,0.00012432,2]
[404282081,1770028706986,-250.0,0.00012478,2]
[404282082,1770028707007,-150.0,0.00012483,2]
[404282083,1770028707027,-200.0,0.00012488,2]
[404282084,1770028707046,-4790.0,0.00012493,2]
[404282085,1770028707065,-151.0,0.00012507,2]
[404282086,1770028707084,-151.0,0.00012507,2]
[404282087,1770028707103,-150.0,0.00012509,2]
[404282088,1770028707123,-348.30224182,0.00012509,2]
[404282089,1770028707146,-71014.53840339,0.0001251,2]
[404282091,1770028730972,818.14686194,0.0001241,2]
[404282092,1770028730998,1252.48831388,0.0001241,2]
[404282100,1770028812838,-577.1821567,0.00011233,2]
[404282101,1770028815016,-500.00000017,0.00011233,2]
[404282102,1770028816543,-252.76591589,0.00011233,2]
[404282103,1770028818632,-208.89990376,0.00011233,2]
[404282104,1770028821978,-1911.74535456,0.00011233,2]
[404282105,1770028823506,-440.90782475,0.00011233,2]
[404282106,1770028825654,-306.04439693,0.00011233,2]
[404282107,1770028828157,-1061.64190853,0.00011233,2]
[404282108,1770028829796,-2685.8321676,0.00011233,2]
[404282109,1770028831313,-173.49272529,0.00011233,2]
[404282110,1770028833833,-426.50727471,0.00011233,2]
[404282112,1770028974688,-500.0,0.00011233,2]
[404282113,1770028979894,-500.0,0.00011233,2]
[404282116,1770029028750,-1418.56037111,0.00011233,2]
[404282539,1770029431775,-291.65158265,0.00011601,2]
[404282540,1770029431787,-210.67863296,0.00011601,2]
[404282542,1770029431797,-250.0,0.00011601,2]
[404282544,1770029431806,-245.0,0.00011601,2]
[404282546,1770029431818,-300.0,0.00011638,2]
[404282548,1770029431827,-166.66,0.00011785,2]
[404282550,1770029431836,-500.0,0.00011842,2]
[404282552,1770029431845,-300.0,0.00011887,2]
[404282554,1770029431854,-1024.0,0.00011887,2]
[404282556,1770029431863,-300.0,0.00011887,2]
[404282558,1770029431872,-1200.0,0.00011887,2]
[404282560,1770029431881,-7153.71136704,0.00011888,2]
[404282563,1770029431898,-11418.98863296,0.00011888,2]
[404282565,1770029431907,-166.66,0.00012175,2]
[404282567,1770029431916,-150.0,0.00012229,2]
[404282569,1770029431926,-282.25840253,0.00012229,2]
[404282571,1770029431935,-500.0,0.00012229,2]
[404282573,1770029431944,-500.0,0.00012229,2]
[404282575,1770029431953,-500.0,0.00012229,2]
[404282577,1770029431962,-150.0,0.00012229,2]
[404282579,1770029431971,-150.0,0.00012229,2]
[404282581,1770029431980,-150.0,0.00012229,2]
[404282583,1770029431989,-500.0,0.00012229,2]
[404282585,1770029431998,-500.0,0.00012229,2]
[404282587,1770029432008,-150.0,0.00012229,2]
[404282589,1770029432016,-500.0,0.00012229,2]
[404282591,1770029432025,-500.0,0.00012229,2]
[404282593,1770029432035,-150.0,0.00012229,2]
[404282595,1770029432044,-500.0,0.00012229,2]
[404282597,1770029432053,-266.79313593,0.00012229,2]
[404282599,1770029432062,-292.55412534,0.00012229,2]
[404282601,1770029432071,-500.0,0.00012229,2]
[404282603,1770029432081,-154.37220028,0.00012229,2]
[404282605,1770029432090,-500.0,0.00012229,2]
[404282607,1770029432099,-703.13852903,0.00012256,2]
[404282609,1770029432108,-285.0,0.00012275,2]
[404282611,1770029432117,-1679.0,0.00012279,2]
[404282613,1770029432127,-150.0,0.00012284,2]
[404282615,1770029432136,-500.0,0.00012284,2]
[404282617,1770029432145,-500.0,0.00012284,2]
[404282619,1770029432154,-500.0,0.00012284,2]
[404282621,1770029432164,-200.0,0.00012284,2]
[404282623,1770029432173,-500.0,0.00012284,2]
[404282625,1770029432182,-500.0,0.00012284,2]
[404282627,1770029432191,-150.0,0.00012284,2]
[404282629,1770029432200,-500.0,0.00012284,2]
[404282632,1770029432210,-500.0,0.00012284,2]
[404282634,1770029432219,-150.0,0.00012284,2]
[404282636,1770029432228,-500.0,0.00012284,2]
[404282638,1770029432237,-559.91417246,0.00012284,2]
[404282640,1770029432246,-500.0,0.00012284,2]
[404282642,1770029432255,-554.0,0.00012303,2]
[404282644,1770029432264,-150.0,0.00012305,2]
[404282646,1770029432273,-16905.24517476,0.0001231,2]
[404282648,1770029432283,-18151.40895989,0.0001231,2]
[404282649,1770029432292,-321.182,0.0001231,2]
[404282650,1770029432301,-192.49583796,0.00012322,2]
[404282651,1770029432310,-151.0,0.00012329,2]